fUSD/lending_fUSD_20251011
["ID","MTS","AMOUNT","RATE_DAILY","PERIOD"]
[390777883,1760145040510,-162.49,0.0001644,2]
[390777884,1760145040519,-4039.46269928,0.00016456,2]
[390777886,1760145040532,-800.0,0.00016456,2]
[390777890,1760145040559,-827.41812219,0.00016456,2]
[390777893,1760145040578,-3606.76209113,0.00016456,2]
[390777905,1760145040689,-998.46229273,0.00016456,2]
[390777907,1760145040699,-10652.17309792,0.00016511,2]
[390777909,1760145040708,-174.19344242,0.00016521,2]
[390777911,1760145040717,-587.0,0.00016525,2]
[390777913,1760145040727,-1022.81,0.00016529,2]
[390777915,1760145040736,-2351.0,0.00016556,2]
[390777917,1760145040747,-11046.30350255,0.00016566,2]
[390777919,1760145040756,-1367.8,0.00016602,2]
[390777921,1760145040766,-11455.01673214,0.00016621,2]
[390777923,1760145040775,-2351.0,0.00016651,2]
[390777925,1760145040786,-11878.85235123,0.00016676,2]
[390777927,1760145040796,-163.2,0.00016712,2]
[390777929,1760145040806,-12318.36988823,0.00016731,2]
[390777931,1760145040816,-1367.8,0.00016767,2]
[390777933,1760145040826,-368.57486781,0.00016773,2]
[390777935,1760145040835,-12774.14957409,0.00016786,2]
[390777937,1760145040844,-1022.85,0.00016803,2]
[390777939,1760145040853,-554.02077566,0.00016807,2]
[390777941,1760145040863,-13246.79310833,0.00016841,2]
[390777943,1760145040872,-500.0,0.00016873,2]
[390777945,1760145040881,-500.0,0.00016873,2]
[390777947,1760145040890,-500.0,0.00016873,2]
[390777949,1760145040899,-500.0,0.00016873,2]
[390777951,1760145040908,-500.0,0.00016873,2]
[390777953,1760145040918,-13736.92445334,0.00016896,2]
[390777955,1760145040927,-700.0,0.000169,6]
[390777957,1760145040937,-1367.8,0.00016931,2]
[390777960,1760145040947,-250.0,0.00017,2]
[390777962,1760145040957,-32841.0,0.00017,2]
[390777964,1760145040966,-159.0,0.00017,2]
[390777966,1760145040975,-159.0,0.00017,2]
[390777968,1760145040984,-159.0,0.00017,2]
[390777970,1760145040996,-159.0,0.00017,2]
[390777972,1760145041007,-159.0,0.00017,3]
[390777974,1760145041018,-159.0,0.00017,3]
[390777975,1760145041028,-1367.8,0.00017095,2]
[390777977,1760145041037,-3745.72,0.00017175,2]
[390777979,1760145041046,-500.0,0.00017205,2]
[390777981,1760145041056,-931.91,0.00017214,2]
[390777983,1760145041066,-1367.8,0.0001726,2]
[390777985,1760145041076,-368.5748678,0.00017365,2]
[390777987,1760145041087,-250.0,0.00017396,2]
[390777989,1760145041098,-761.06589,0.000174,2]
[390777991,1760145041115,-1367.8,0.00017424,2]
[390777993,1760145041125,-664.82493079,0.00017443,2]
[390777995,1760145041135,-334.5472959,0.0001755,2]
[390777997,1760145041146,-257.91778498,0.0001755,2]
[390777999,1760145041156,-1367.8,0.00017589,2]
[390778001,1760145041166,-1000.0,0.00017594,2]
[390778003,1760145041178,-207.4,0.00017699,2]
[390778005,1760145041194,-151.0,0.00017706,2]
[390778007,1760145041204,-1985.0,0.00017721,2]
[390778009,1760145041214,-1367.8,0.00017753,2]
[390778012,1760145041223,-1000.0,0.00017787,2]
[390778014,1760145041233,-790.74336307,0.00017787,2]
[390778016,1760145041245,-500.0,0.00017863,2]
[390778018,1760145041255,-500.0,0.00017863,2]
[390778020,1760145041265,-572.87441547,0.00017863,2]
[390778022,1760145041275,-1400.0,0.000179,6]
[390778024,1760145041285,-1367.8,0.00017917,2]
[390778026,1760145041294,-1000.0,0.00017918,2]
[390778028,1760145041303,-8674.51007134,0.00017956,2]
[390778030,1760145041312,-162.6858751,0.00017956,2]
[390778032,1760145041322,-226.79010898,0.00017956,2]
[390778034,1760145041331,-368.5748678,0.00017956,2]
[390778036,1760145041339,-10000.0,0.00018,2]
[390778038,1760145041350,-159.0,0.00018,4]
[390778040,1760145041359,-159.0,0.00018,4]
[390778042,1760145041369,-3000.0,0.00018,2]
[390778044,1760145041379,-159.0,0.00018,2]
[390778046,1760145041388,-159.0,0.00018,2]
[390778048,1760145041398,-159.0,0.00018,2]
[390778050,1760145041407,-159.0,0.00018,2]
[390778052,1760145041416,-159.0,0.00018,3]
[390778054,1760145041426,-159.0,0.00018,3]
[390778056,1760145041435,-159.0,0.00018,3]
[390778057,1760145041445,-159.0,0.00018,3]
[390778058,1760145041454,-159.0,0.00018,3]
[390778059,1760145041463,-48503.36768585,0.00018,2]
[390778067,1760145042611,-1130.1,0.00016228,2]
[390778075,1760145045468,-1964.24039954,0.00016228,2]
[390778076,1760145045481,-2448.41813528,0.00016228,2]
[390778077,1760145045597,-501.18079579,0.00016228,2]
[390778078,1760145045646,-12363.56706141,0.00016228,2]
[390778079,1760145045656,-13610.85383859,0.00016277,2]
[390778090,1760145221743,5248.0,0.000132,5]
[390778096,1760145457418,-300.0,0.00013719,2]
[390778097,1760145457442,-300.0,0.0001372,2]
[390778098,1760145457466,-452.0,0.0001372,2]
[390778099,1760145506758,174.751296,0.00013651,2]
[390778100,1760145560050,184.52715246,0.00013619,2]
[390778101,1760145691878,169.91,0.00012385,2]
[390778102,1760145795598,161.48,7.731e-05,2]
[390778103,1760145795824,161.48,8.698e-05,2]
[390778104,1760145796013,161.48,9.664e-05,2]
[390778105,1760145796249,161.48,0.0001063,2]
[390778106,1760145796447,161.48,0.00011597,2]
[390778107,1760145796642,161.48,0.00012563,2]
[390778108,1760145797277,161.48,0.00013529,2]
[390778185,1760146231892,-300.0,0.00013711,2]
[390778186,1760146231902,-445.6569597,0.00013711,2]
[390778187,1760146231914,-250.02900943,0.00013711,2]
[390778188,1760146231926,-504.31403087,0.00013711,2]
[390778189,1760146231936,-300.0,0.00013712,2]
[390778190,1760146231945,-219.81891956,0.00013712,2]
[390778191,1760146231982,-1829.94521194,0.00013712,2]
[390778192,1760146231992,-500.0,0.00013712,2]
[390778193,1760146232004,-606.57118167,0.00013712,2]
[390778194,1760146232014,-500.0,0.00013712,2]
[390778195,1760146232023,-152.9617479,0.00013712,2]
[390778196,1760146232035,-347.0382521,0.00013712,2]
[390778197,1760146232044,-292.9653951,0.00013712,2]
[390778198,1760146232056,-207.0346049,0.00013712,2]
[390778199,1760146232066,-60.5953951,0.00013713,2]
[390778200,1760146232078,-239.4046049,0.00013713,2]
[390778201,1760146232088,-421.39785769,0.00013713,2]
[390778203,1760146232098,-1462.98905443,0.00013714,2]
[390778205,1760146232109,-537.01094557,0.00013714,2]
[390778207,1760146232118,-341.37617925,0.00013715,2]
[390778209,1760146232128,-345.95,0.00013716,2]
[390778211,1760146232138,-345.95,0.0001399,2]
[390778213,1760146232147,-700.0,0.000141,5]
[390778215,1760146232157,-6900.99,0.000141,2]
[390778216,1760146232167,-7699.04,0.000141,2]
[390778217,1760146232176,-1500.0,0.000142,5]
[390778218,1760146232186,-7622.8,0.000142,2]
[390778219,1760146232195,-5747.97748294,0.000142,2]
[390778221,1760146232207,-19715.94506604,0.000142,2]
[390778226,1760146232246,-7527.06724576,0.000142,2]
[390778227,1760146232266,-473.32,0.000142,2]
[390778231,1760146233114,1000.0,0.00013699,2]
[390778243,1760146237914,-500.0,0.0001371,2]
[390778244,1760146237923,-500.0,0.0001371,2]
[390778245,1760146237933,-144.0,0.0001371,2]
[390778246,1760146237945,-356.0,0.0001371,2]
[390778247,1760146237959,-397.30801904,0.0001371,2]
[390778248,1760146237968,-479.28394382,0.00013713,2]
[390778250,1760146237978,-14583.7813063,0.000142,2]
[390778447,1760146240068,-561.4826567,0.000142,2]
[390778449,1760146240079,-1723.59297381,0.000142,2]
[390778451,1760146240091,-39538.69326845,0.000142,2]
[390778453,1760146240101,-345.95,0.00014264,2]
[390778455,1760146240109,-2300.0,0.000143,5]
[390778457,1760146240119,-3100.0,0.000144,5]
[390778459,1760146240127,-161.48,0.00014496,2]
[390778461,1760146240136,-3800.0,0.000145,5]
[390778463,1760146240145,-345.95,0.00014538,2]
[390778465,1760146240154,-700.0,0.000146,5]
[390778467,1760146240164,-1128.4258,0.00014653,2]
[390778469,1760146240173,-6934.30377731,0.00014663,2]
[390778471,1760146240182,-700.0,0.000147,5]
[390778473,1760146240191,-700.0,0.000148,5]
[390778475,1760146240200,-345.95285895,0.00014812,2]
[390778477,1760146240209,-425.66,0.0001489,2]
[390778479,1760146240219,-425.66,0.0001489,2]
[390778481,1760146240228,-3924.24391436,0.00014891,2]
[390778513,1760146240654,-3924.24391432,0.00014892,2]
[390778516,1760146240670,-3924.24391432,0.00014893,2]
[390778518,1760146240680,-3924.24391432,0.00014894,2]
[390778520,1760146240690,-3924.24391432,0.00014895,2]
[390778522,1760146240699,-3924.24391432,0.00014896,2]
[390778524,1760146240709,-3924.24391432,0.00014897,2]
[390778526,1760146240719,-3924.24391432,0.00014898,2]
[390778528,1760146240728,-3924.24391432,0.00014899,2]
[390778530,1760146240737,-700.0,0.000149,5]
[390778532,1760146240746,-1360.74065358,0.000149,2]
[390778534,1760146240755,-3924.24391432,0.000149,2]
[390778536,1760146240770,-427.41806227,0.000149,2]
[390778538,1760146240780,-204.65197222,0.000149,2]
[390778540,1760146240790,-252.25358884,0.000149,2]
[390778542,1760146240800,-96834.18451353,0.000149,2]
[390778544,1760146240810,-997.57387278,0.000149,2]
[390778546,1760146240820,-500.0,0.00014973,2]
[390778548,1760146240830,-425.66,0.0001499,2]
[390778550,1760146240839,-425.66,0.0001499,2]
[390778552,1760146240848,-425.66,0.0001499,2]
[390778554,1760146240857,-151.0,0.00014991,2]
[390778556,1760146240866,-151.0,0.00014991,2]
[390778558,1760146240876,-151.0,0.00014991,2]
[390778560,1760146240885,-151.0,0.00014991,2]
[390778562,1760146240895,-151.0,0.00014991,2]
[390778564,1760146240905,-151.0,0.00014991,2]
[390778566,1760146240914,-151.0,0.00014991,2]
[390778568,1760146240923,-151.0,0.00014991,2]
[390778570,1760146240933,-151.0,0.00014991,2]
[390778572,1760146240942,-151.0,0.00014991,2]
[390778574,1760146240953,-190.82609858,0.00014991,2]
[390778576,1760146240962,-200.0,0.00014991,2]
[390778578,1760146240972,-752.210885,0.00014995,2]
[390778580,1760146240981,-151.0,0.00014997,2]
[390778582,1760146240990,-11592007.66344595,0.00015,2]
[390778584,1760146241002,-251.18767036,0.00015,2]
[390778603,1760146241173,-22423.23208952,0.00015,2]
[390778801,1760146243059,-92698.40690234,0.00015,2]
[390778855,1760146246132,-377.34871718,0.00015,2]
[390778856,1760146246148,-2241.35750001,0.00015,2]
[390778857,1760146246160,-2921.45058445,0.00015,2]
[390778858,1760146246172,-948.825,0.00015,2]
[390778859,1760146246183,-5037.20419954,0.00015,2]
[390778863,1760146377139,235.2637,0.00013611,2]
[390778864,1760146465588,300.0,0.0001361,2]
[390778866,1760146527669,300.0,0.0001361,2]
[390778867,1760146588444,-3858.16566998,0.0002,120]
[390778868,1760146628030,161.35,0.000137,2]
[390778869,1760146756166,200.0,0.000122,2]
[390778870,1760146809205,167.0,0.0001836,120]
[390778871,1760146810515,167.0,0.00019278,120]
[390778873,1760147086024,6535.06,0.00013665,2]
[390778874,1760147119915,167.0,0.0001836,120]
[390778875,1760147120259,1500.0,0.00013642,2]
[390778876,1760147121206,167.0,0.00019278,120]
[390778877,1760147136322,2803.63,0.00013635,2]
[390778878,1760147216339,56294.73,0.00013617,2]
[390778883,1760147403859,167.0,0.0001836,120]
[390778884,1760147415680,610.0,0.00013699,2]
[390778887,1760147431924,-165.25814124,0.00013711,2]
[390778888,1760147431934,-250.0,0.00013753,2]
[390778889,1760147431944,-500.63102241,0.00013791,2]
[390778890,1760147431955,-2000.0,0.00013793,2]
[390778891,1760147431965,-1550.91083635,0.00013811,2]
[390778892,1760147432033,-449.08916365,0.00013811,2]
[390778893,1760147432043,-300.78,0.00013814,2]
[390778894,1760147432052,-300.0,0.00013816,2]
[390778895,1760147432062,-1200.0,0.00013816,2]
[390778896,1760147432072,-300.0,0.00013816,2]
[390778897,1760147432082,-1200.0,0.00013817,2]
[390778898,1760147432091,-2579.73,0.00013819,2]
[390778899,1760147432101,-13366.48345019,0.00013834,2]
[390778900,1760147432136,-5368.1832798,0.00013834,2]
[390778987,1760147437916,-46.73327001,0.00013834,2]
[390778988,1760147437926,-221.46,0.00013834,2]
[390778989,1760147437936,-1924.89,0.00013837,2]
[390778990,1760147437947,-171.89,0.00013843,2]
[390778991,1760147437957,-300.0,0.00013881,2]
[390778992,1760147437967,-1852.42,0.0001399,2]
[390778993,1760147437978,-500.0,0.00014128,2]
[390778994,1760147437988,-258.477011,0.000142,2]
[390778995,1760147437998,-250.0,0.00014272,7]
[390778996,1760147438008,-1929.8547138,0.0001428,2]
[390778997,1760147438024,-200.0,0.00014291,2]
[390778998,1760147438035,-200.0,0.00014291,2]
[390778999,1760147438044,-200.0,0.00014291,2]
[390779000,1760147438054,-938.0,0.00014295,2]
[390779001,1760147438064,-1002.99544723,0.00014299,2]
[390779002,1760147438074,-150.0,0.00014299,2]
[390779003,1760147438085,-10642.24941923,0.000143,2]
[390779004,1760147438095,-600.0,0.000143,5]
[390779005,1760147438106,-450.0427412,0.00014319,2]
[390779015,1760147438116,-516.49692586,0.00014319,2]
[390779017,1760147438224,-583.0,0.00014333,2]
[390779019,1760147438234,-1655.0,0.00014333,2]
[390779021,1760147438243,-1300.0,0.000144,5]
[390779023,1760147438253,-1116.0,0.00014405,2]
[390779025,1760147438265,-868.0,0.00014419,2]
[390779026,1760147438274,-956.0,0.00014419,2]
[390779028,1760147438283,-264.60555315,0.00014433,2]
[390779030,1760147438293,-513.31,0.00014481,2]
[390779033,1760147438302,-184.0,0.0001449,2]
[390779036,1760147438312,-2000.0,0.000145,5]
[390779037,1760147438322,-2700.0,0.000146,5]
[390779039,1760147438332,-854.13393831,0.00014605,2]
[390779041,1760147438342,-171.89,0.00014612,2]
[390779043,1760147438352,-3400.0,0.000147,5]
[390779045,1760147438364,-1349.35787233,0.000148,2]
[390779048,1760147438374,-600.0,0.000148,5]
[390779050,1760147438384,-1349.35787232,0.00014811,2]
[390779052,1760147438393,-1349.35787232,0.00014822,2]
[390779054,1760147438403,-1349.35787232,0.00014833,2]
[390779055,1760147438412,-2500.0,0.00014838,3]
[390779057,1760147438421,-200.0,0.00014839,2]
[390779059,1760147438432,-310.25935717,0.00014839,2]
[390779061,1760147438441,-1349.35787232,0.00014844,2]
[390779063,1760147438450,-2500.0,0.00014847,3]
[390779065,1760147438460,-70167.50743868,0.0001485,2]
[390779067,1760147438469,-1349.35787232,0.00014856,2]
[390779069,1760147438479,-2500.0,0.00014856,3]
[390779071,1760147438488,-2500.0,0.00014865,3]
[390779074,1760147438497,-1349.35787232,0.00014867,2]
[390779076,1760147438507,-2500.0,0.00014874,3]
[390779078,1760147438520,-1349.35787232,0.00014878,2]
[390779080,1760147438530,-2500.0,0.00014882,3]
[390779081,1760147438539,-1349.35787232,0.00014889,2]
[390779083,1760147438549,-2984.2271,0.0001489,2]
[390779086,1760147438559,-2500.0,0.00014891,3]
[390779088,1760147438569,-740.04110026,0.00014899,2]
[390779090,1760147438579,-158.04634011,0.00014899,2]
[390779091,1760147438590,-740.04110019,0.00014899,2]
[390779093,1760147438600,-740.04110019,0.00014899,2]
[390779094,1760147438609,-740.04110019,0.00014899,2]
[390779095,1760147438620,-740.04110019,0.00014899,2]
[390779097,1760147438629,-740.04110019,0.000149,2]
[390779099,1760147438638,-740.04110019,0.000149,2]
[390779101,1760147438648,-740.04110019,0.000149,2]
[390779104,1760147438659,-740.04110019,0.000149,2]
[390779106,1760147438668,-500.0,0.000149,2]
[390779108,1760147438678,-500.0,0.000149,2]
[390779110,1760147438688,-19910.1205,0.000149,2]
[390779112,1760147438697,-1009.46943617,0.000149,2]
[390779114,1760147438707,-3627.87690441,0.000149,2]
[390779116,1760147438716,-1349.35787232,0.000149,2]
[390779118,1760147438726,-2500.0,0.000149,3]
[390779120,1760147438735,-193.00074915,0.000149,2]
[390779122,1760147438744,-500.0,0.000149,2]
[390779124,1760147438753,-500.0,0.000149,2]
[390779126,1760147438764,-150.0,0.000149,2]
[390779128,1760147438774,-150.0,0.000149,2]
[390779130,1760147438783,-459.0,0.000149,2]
[390779132,1760147438793,-150.0,0.000149,2]
[390779134,1760147438802,-500.0,0.000149,2]
[390779135,1760147438811,-150.0,0.000149,2]
[390779137,1760147438821,-740.04110019,0.000149,2]
[390779140,1760147438831,-600.0,0.000149,5]
[390779142,1760147438841,-921.0,0.000149,2]
[390779144,1760147438851,-166.85580667,0.000149,2]
[390779146,1760147438861,-478.0,0.000149,2]
[390779148,1760147438871,-150.0,0.000149,2]
[390779150,1760147438883,-593.0,0.000149,2]
[390779152,1760147438893,-500.0,0.000149,2]
[390779154,1760147438904,-500.0,0.000149,2]
[390779156,1760147438915,-500.0,0.000149,2]
[390779158,1760147438926,-1643.0,0.000149,2]
[390779160,1760147438939,-335.77587549,0.000149,2]
[390779162,1760147438949,-500.0,0.000149,2]
[390779164,1760147438958,-500.0,0.000149,2]
[390779166,1760147438968,-150.0,0.000149,2]
[390779168,1760147438980,-150.0,0.000149,2]
[390779170,1760147438991,-201.48943055,0.000149,2]
[390779172,1760147439000,-622.0,0.000149,2]
[390779174,1760147439011,-500.0,0.000149,2]
[390779176,1760147439023,-150.0,0.000149,2]
[390779178,1760147439032,-150.0,0.000149,2]
[390779179,1760147439042,-150.0,0.000149,2]
[390779181,1760147439052,-500.0,0.00014955,2]
[390779183,1760147439062,-150.0,0.00014955,2]
[390779185,1760147439072,-459.0,0.00014955,2]
[390779188,1760147439082,-503.22779808,0.00014955,2]
[390779189,1760147439094,-921.0,0.00014955,2]
[390779191,1760147439104,-478.0,0.00014955,2]
[390779193,1760147439114,-150.0,0.00014955,2]
[390779195,1760147439124,-593.0,0.00014955,2]
[390779197,1760147439134,-500.0,0.00014955,2]
[390779199,1760147439143,-500.0,0.00014955,2]
[390779201,1760147439152,-500.0,0.00014955,2]
[390779203,1760147439162,-1643.0,0.00014955,2]
[390779205,1760147439171,-500.0,0.00014955,2]
[390779207,1760147439180,-500.0,0.00014955,2]
[390779209,1760147439190,-622.0,0.00014955,2]
[390779211,1760147439200,-500.0,0.00014955,2]
[390779213,1760147439210,-150.0,0.00014955,2]
[390779215,1760147439221,-150.0,0.00014955,2]
[390779217,1760147439231,-150.23117453,0.00014955,2]
[390779219,1760147439241,-500.0,0.00014973,2]
[390779221,1760147439252,-500.0,0.00014973,2]
[390779223,1760147439266,-597.06691714,0.00014973,2]
[390779225,1760147439276,-500.0,0.00014973,2]
[390779227,1760147439286,-500.0,0.00014973,2]
[390779229,1760147439296,-159.83474733,0.00014973,2]
[390779231,1760147439306,-501.58960617,0.00014973,2]
[390779233,1760147439315,-174.13035274,0.00014973,2]
[390779235,1760147439325,-500.0,0.00014973,2]
[390779237,1760147439335,-500.0,0.00014973,2]
[390779239,1760147439345,-500.0,0.00014973,2]
[390779240,1760147439355,-500.0,0.00014973,2]
[390779242,1760147439365,-500.0,0.00014973,2]
[390779244,1760147439374,-500.0,0.00014973,2]
[390779245,1760147439384,-500.0,0.00014973,2]
[390779247,1760147439394,-500.0,0.00014973,2]
[390779249,1760147439403,-511.33462284,0.00014973,2]
[390779251,1760147439411,-500.0,0.00014973,2]
[390779253,1760147439422,-500.0,0.00014973,2]
[390779254,1760147439431,-500.0,0.00014973,2]
[390779255,1760147439441,-500.0,0.00014973,2]
[390779256,1760147439451,-500.0,0.00014973,2]
[390779257,1760147439460,-500.0,0.00014973,2]
[390779258,1760147439470,-500.0,0.00014973,2]
[390779259,1760147439480,-500.0,0.00014973,2]
[390779260,1760147439489,-500.0,0.00014973,2]
[390779261,1760147439498,-500.0,0.00014973,2]
[390779262,1760147439508,-500.0,0.00014973,2]
[390779263,1760147439521,-500.0,0.00014973,2]
[390779264,1760147439530,-1608.42,0.00014973,2]
[390779265,1760147439539,-5000.0,0.0001499,8]
[390779266,1760147439549,-5000.0,0.0001499,9]
[390779267,1760147439558,-5000.0,0.0001499,10]
[390779268,1760147439568,-5000.0,0.0001499,11]
[390779269,1760147439577,-5000.0,0.0001499,12]
[390779270,1760147439587,-3506.0,0.0001499,13]
[390779271,1760147439598,-5000.0,0.0001499,27]
[390779272,1760147439608,-5000.0,0.0001499,28]
[390779273,1760147439617,-5000.0,0.0001499,29]
[390779274,1760147439627,-151.0,0.00014996,2]
[390779275,1760147439638,-151.0,0.00014997,2]
[390779276,1760147439647,-1000.0,0.00014998,15]
[390779277,1760147439657,-1000.0,0.00014998,15]
[390779278,1760147439668,-1000.0,0.00014998,15]
[390779279,1760147439678,-1000.0,0.00014998,15]
[390779280,1760147439688,-1000.0,0.00014998,15]
[390779281,1760147439697,-1000.0,0.00014998,15]
[390779282,1760147439707,-1000.0,0.00014998,15]
[390779283,1760147439716,-1000.0,0.00014998,15]
[390779285,1760147439725,-1000.0,0.00014998,15]
[390779287,1760147439735,-1000.0,0.00014998,15]
[390779288,1760147439745,-1000.0,0.00014998,15]
[390779289,1760147439755,-1000.0,0.00014998,15]
[390779290,1760147439769,-1000.0,0.00014998,15]
[390779291,1760147439778,-1000.0,0.00014998,15]
[390779292,1760147439788,-1000.0,0.00014998,15]
[390779293,1760147439797,-1000.0,0.00014998,15]
[390779294,1760147439807,-1000.0,0.00014998,15]
[390779295,1760147439817,-1000.0,0.00014998,15]
[390779296,1760147439827,-1000.0,0.00014998,15]
[390779297,1760147439836,-1000.0,0.00014998,15]
[390779298,1760147439846,-1000.0,0.00014998,15]
[390779299,1760147439855,-1000.0,0.00014998,15]
[390779300,1760147439864,-1000.0,0.00014998,15]
[390779301,1760147439874,-611.58468517,0.00014998,15]
[390779302,1760147439887,-23584.59,0.00014999,2]
[390779303,1760147439897,-8018.5695092,0.00014999,2]
[390779304,1760147439911,-5996.6630365,0.00014999,2]
[390779305,1760147439921,-39332.0962302,0.00014999,2]
[390779306,1760147439931,-1493.85012699,0.00014999,5]
[390779307,1760147439940,-288031.3319219,0.00014999,2]
[390779308,1760147439950,-500.0,0.00014999,2]
[390779309,1760147439960,-500.0,0.00014999,2]
[390779310,1760147439969,-166.962,0.00014999,2]
[390779311,1760147439979,-150.0,0.00014999,2]
[390779312,1760147439989,-463.27,0.00014999,2]
[390779313,1760147439998,-8372356.48197602,0.00015,2]
[390779314,1760147440008,-2022.61626939,0.00015,2]
[390779315,1760147440021,-1859.49378719,0.00015,2]
[390779316,1760147440030,-353.57,0.00015,2]
[390779317,1760147440040,-151.0,0.00015,2]
[390779318,1760147440049,-151.0,0.00015,2]
[390779319,1760147440058,-151.0,0.00015,2]
[390779320,1760147440068,-151.0,0.00015,2]
[390779321,1760147440077,-151.0,0.00015,2]
[390779322,1760147440086,-160.0,0.00015,2]
[390779323,1760147440095,-151.0,0.00015,2]
[390779324,1760147440107,-151.0,0.00015,2]
[390779325,1760147440117,-151.0,0.00015,2]
[390779326,1760147440127,-151.0,0.00015,2]
[390779327,1760147440136,-151.0,0.00015,2]
[390779328,1760147440145,-151.0,0.00015,2]
[390779329,1760147440155,-500.0,0.0001501,2]
[390779330,1760147440164,-203.76608449,0.0001501,2]
[390779331,1760147440173,-459.0,0.0001501,2]
[390779332,1760147440182,-921.0,0.0001501,2]
[390779333,1760147440192,-478.0,0.0001501,2]
[390779334,1760147440201,-150.0,0.0001501,2]
[390779335,1760147440211,-593.0,0.0001501,2]
[390779336,1760147440220,-244.0,0.0001501,2]
[390779337,1760147440229,-500.0,0.0001501,2]
[390779338,1760147440240,-167.52038592,0.0001501,2]
[390779339,1760147440249,-1643.0,0.0001501,2]
[390779340,1760147440258,-500.0,0.0001501,2]
[390779341,1760147440271,-500.0,0.0001501,2]
[390779342,1760147440281,-622.0,0.0001501,2]
[390779343,1760147440291,-501.83611876,0.0001501,2]
[390779344,1760147440300,-150.0,0.0001501,2]
[390779345,1760147440309,-200.0,0.0001501,2]
[390779346,1760147440319,-500.0,0.00015064,2]
[390779347,1760147440329,-459.0,0.00015064,2]
[390779348,1760147440338,-921.0,0.00015064,2]
[390779349,1760147440348,-478.0,0.00015064,2]
[390779350,1760147440357,-150.0,0.00015064,2]
[390779351,1760147440366,-593.0,0.00015064,2]
[390779352,1760147440375,-500.0,0.00015064,2]
[390779353,1760147440385,-1643.0,0.00015064,2]
[390779354,1760147440396,-500.0,0.00015064,2]
[390779355,1760147440405,-500.0,0.00015064,2]
[390779356,1760147440415,-622.0,0.00015064,2]
[390779358,1760147440426,-243.58972745,0.00015064,2]
[390779359,1760147440435,-150.28211594,0.00015081,2]
[390779361,1760147440445,-150.0,0.00015081,2]
[390779362,1760147440455,-150.0,0.00015081,2]
[390779363,1760147440464,-150.0,0.00015081,2]
[390779364,1760147440474,-150.0,0.00015081,2]
[390779366,1760147440483,-150.0,0.00015081,2]
[390779367,1760147440492,-150.0,0.00015081,2]
[390779368,1760147440502,-150.0,0.00015081,2]
[390779369,1760147440513,-2603.80705,0.0001509,2]
[390779370,1760147440523,-250.0,0.00015107,2]
[390779371,1760147440532,-2000.0,0.00015107,2]
[390779373,1760147440541,-500.0,0.00015119,2]
[390779375,1760147440550,-459.0,0.00015119,2]
[390779376,1760147440560,-921.0,0.00015119,2]
[390779377,1760147440570,-478.0,0.00015119,2]
[390779378,1760147440579,-251.27025444,0.00015119,2]
[390779379,1760147440589,-593.0,0.00015119,2]
[390779380,1760147440599,-500.0,0.00015119,2]
[390779381,1760147440608,-1643.0,0.00015119,2]
[390779382,1760147440617,-280.21118357,0.00015119,2]
[390779383,1760147440626,-520.97593666,0.00015119,2]
[390779384,1760147440635,-622.0,0.00015119,2]
[390779385,1760147440645,-150.0,0.00015136,2]